fUSD/lending_fUSD_20250814
["ID","MTS","AMOUNT","RATE_DAILY","PERIOD"]
[379204221,1755185510702,-400.0,0.00027671,2]
[379204222,1755185510712,-400.0,0.00027671,2]
[379204223,1755185510722,-3816.3,0.00027671,2]
[379204224,1755185510731,-1615.15,0.00027671,2]
[379204225,1755185510741,-1415.29,0.00027671,2]
[379204226,1755185510751,-400.0,0.00027671,2]
[379204227,1755185510760,-1716.24,0.00027671,2]
[379204228,1755185510770,-400.0,0.00027671,2]
[379204229,1755185510779,-2033.38,0.00027671,2]
[379204230,1755185510789,-4426.53,0.00027671,2]
[379204231,1755185510799,-6479.22,0.00027671,2]
[379204232,1755185510809,-930.18,0.00027671,2]
[379204233,1755185510818,-470.04963661,0.00027671,2]
[379204234,1755185510828,-5357.4,0.00027671,2]
[379204235,1755185510838,-213.47,0.00027671,2]
[379204236,1755185510847,-3518.08,0.00027671,2]
[379204237,1755185510858,-400.0,0.00027671,2]
[379204238,1755185510867,-400.0,0.00027671,2]
[379204239,1755185510877,-1301.11,0.00027671,2]
[379204240,1755185510887,-400.0,0.00027671,2]
[379204241,1755185510896,-400.0,0.00027671,2]
[379204242,1755185510907,-407.01,0.00027671,2]
[379204243,1755185510917,-400.0,0.00027671,2]
[379204244,1755185510926,-996.78,0.00027671,2]
[379204245,1755185510939,-400.0,0.00027671,2]
[379204246,1755185510949,-8570.57,0.00027671,2]
[379204247,1755185510959,-1778.89,0.00027671,2]
[379204248,1755185510969,-523.13,0.00027671,2]
[379204249,1755185510979,-3081.95,0.00027671,2]
[379204250,1755185510989,-9514.37,0.00027671,2]
[379204251,1755185510999,-5712.02,0.00027671,2]
[379204252,1755185511010,-5766.49,0.00027671,2]
[379204253,1755185511020,-488.92,0.00027671,2]
[379204254,1755185511030,-6417.21,0.00027671,2]
[379204255,1755185511040,-400.0,0.00027671,2]
[379204256,1755185511049,-400.0,0.00027671,2]
[379204257,1755185511060,-1679.25,0.00027671,2]
[379204258,1755185511071,-2544.75,0.00027671,2]
[379204259,1755185511080,-771.19,0.00027671,2]
[379204260,1755185511090,-872.7,0.00027671,2]
[379204261,1755185511100,-400.0,0.00027671,2]
[379204262,1755185511110,-1389.37,0.00027671,2]
[379204263,1755185511120,-25364.36,0.00027671,2]
[379204264,1755185511132,-1502.87,0.00027671,2]
[379204265,1755185511145,-500.0,0.00027671,2]
[379204266,1755185511163,-400.0,0.00027671,2]
[379204267,1755185511175,-400.0,0.00027671,2]
[379204268,1755185511187,-3248.41,0.00027671,2]
[379204269,1755185511197,-10143.75,0.00027671,2]
[379204270,1755185511207,-945.37,0.00027671,2]
[379204271,1755185511217,-1077.25,0.00027671,2]
[379204272,1755185511227,-6998.86,0.00027671,2]
[379204273,1755185511237,-400.0,0.00027671,2]
[379204274,1755185511247,-400.0,0.00027671,2]
[379204275,1755185511257,-3026.01,0.00027671,2]
[379204276,1755185511267,-400.0,0.00027671,2]
[379204277,1755185511277,-151.0,0.00027671,7]
[379204278,1755185511287,-4765.89,0.00027671,2]
[379204279,1755185511297,-955.05,0.00027671,2]
[379204280,1755185511306,-151.0,0.00027671,7]
[379204281,1755185511316,-854.86,0.00027671,2]
[379204282,1755185511325,-8865.83,0.00027671,2]
[379204283,1755185511335,-430.05,0.00027671,2]
[379204284,1755185511345,-400.0,0.00027671,2]
[379204285,1755185511354,-405.24,0.00027671,2]
[379204286,1755185511364,-400.0,0.00027671,2]
[379204287,1755185511374,-400.0,0.00027671,2]
[379204288,1755185511383,-1104.18,0.00027671,2]
[379204289,1755185511392,-1867.52,0.00027671,2]
[379204290,1755185511402,-480.6,0.00027671,2]
[379204291,1755185511411,-500.0,0.00027671,10]
[379204292,1755185511421,-400.0,0.00027671,2]
[379204293,1755185511432,-1069.9,0.00027671,2]
[379204294,1755185511442,-8393.7,0.00027671,2]
[379204295,1755185511452,-6474.25,0.00027671,2]
[379204296,1755185511462,-2623.36,0.00027671,2]
[379204297,1755185511471,-903.34,0.00027671,2]
[379204298,1755185511481,-507.53,0.00027671,2]
[379204299,1755185511491,-1325.24,0.00027671,2]
[379204300,1755185511501,-7291.17,0.00027671,2]
[379204301,1755185511514,-400.0,0.00027671,2]
[379204302,1755185511524,-400.0,0.00027671,2]
[379204303,1755185511534,-400.0,0.00027671,2]
[379204304,1755185511543,-7650.45,0.00027671,2]
[379204305,1755185511553,-554.21,0.00027671,2]
[379204306,1755185511562,-400.0,0.00027671,2]
[379204307,1755185511572,-1412.24,0.00027671,2]
[379204308,1755185511581,-2798.34,0.00027671,2]
[379204309,1755185511591,-576.58,0.00027671,2]
[379204310,1755185511601,-3319.42,0.00027671,2]
[379204311,1755185511611,-14633.71,0.00027671,2]
[379204312,1755185511620,-3043.5,0.00027671,2]
[379204313,1755185511630,-2957.52,0.00027671,2]
[379204314,1755185511640,-400.0,0.00027671,2]
[379204315,1755185511649,-5118.48,0.00027671,2]
[379204316,1755185511659,-1391.47,0.00027671,2]
[379204317,1755185511669,-1425.49,0.00027671,2]
[379204318,1755185511679,-3051.11,0.00027671,2]
[379204319,1755185511688,-400.0,0.00027671,2]
[379204320,1755185511698,-400.0,0.00027671,2]
[379204321,1755185511708,-7119.26,0.00027671,2]
[379204322,1755185511718,-1461.82,0.00027671,2]
[379204323,1755185511728,-400.0,0.00027671,2]
[379204324,1755185511737,-4194.05,0.00027671,2]
[379204325,1755185511747,-400.0,0.00027671,2]
[379204326,1755185511756,-400.0,0.00027671,2]
[379204327,1755185511765,-7618.68,0.00027671,2]
[379204328,1755185511775,-1979.5,0.00027671,2]
[379204329,1755185511784,-400.0,0.00027671,2]
[379204330,1755185511794,-567.15,0.00027671,2]
[379204331,1755185511804,-4822.62,0.00027671,2]
[379204332,1755185511814,-400.0,0.00027671,2]
[379204333,1755185511823,-400.0,0.00027671,2]
[379204334,1755185511833,-485.62,0.00027671,2]
[379204335,1755185511842,-8328.83,0.00027671,2]
[379204336,1755185511851,-400.0,0.00027671,2]
[379204337,1755185511861,-400.0,0.00027671,2]
[379204338,1755185511871,-821.23,0.00027671,2]
[379204339,1755185511881,-6152.81,0.00027671,2]
[379204340,1755185511891,-3152.44,0.00027671,2]
[379204341,1755185511900,-2693.87,0.00027671,2]
[379204342,1755185511910,-1176.77,0.00027671,2]
[379204343,1755185511920,-907.24,0.00027671,2]
[379204344,1755185511932,-457.19,0.00027671,2]
[379204345,1755185511941,-423.0,0.00027671,2]
[379204346,1755185511951,-1648.5,0.00027671,2]
[379204347,1755185511960,-400.0,0.00027671,2]
[379204348,1755185511970,-400.0,0.00027671,2]
[379204349,1755185511980,-9324.24,0.00027671,2]
[379204350,1755185511990,-12493.03,0.00027671,2]
[379204351,1755185511999,-400.0,0.00027671,2]
[379204352,1755185512011,-400.0,0.00027671,2]
[379204353,1755185512021,-400.0,0.00027671,2]
[379204354,1755185512030,-5283.4,0.00027671,2]
[379204355,1755185512040,-4154.62,0.00027671,2]
[379204356,1755185512049,-575.75,0.00027671,2]
[379204357,1755185512059,-985.22,0.00027671,2]
[379204358,1755185512069,-581.38,0.00027671,2]
[379204359,1755185512078,-6027.64,0.00027671,2]
[379204360,1755185512088,-496.93,0.00027671,2]
[379204361,1755185512098,-5280.57,0.00027671,2]
[379204362,1755185512108,-800.51,0.00027671,2]
[379204363,1755185512118,-2557.41,0.00027671,2]
[379204364,1755185512128,-6846.66,0.00027671,2]
[379204365,1755185512138,-476.26779013,0.00027671,2]
[379204366,1755185512152,-1756.56,0.00027671,2]
[379204367,1755185512162,-3085.02,0.00027671,2]
[379204368,1755185512172,-11504.48,0.00027671,2]
[379204369,1755185512188,-2557.24,0.00027671,2]
[379204370,1755185512198,-400.0,0.00027671,2]
[379204371,1755185512207,-171.276617,0.00027671,7]
[379204372,1755185512220,-1211.83,0.00027671,2]
[379204373,1755185512230,-171.276617,0.00027671,7]
[379204374,1755185512240,-400.0,0.00027671,2]
[379204375,1755185512250,-3391.88,0.00027671,2]
[379204376,1755185512260,-1100.77,0.00027671,2]
[379204377,1755185512270,-275.42113833,0.00027671,2]
[379204378,1755185512279,-3801.64,0.00027671,2]
[379204379,1755185512289,-3485.83,0.00027671,2]
[379204380,1755185512298,-13666.85,0.00027671,2]
[379204381,1755185512308,-400.0,0.00027671,2]
[379204382,1755185512317,-171.276617,0.00027671,7]
[379204383,1755185512327,-400.0,0.00027671,2]
[379204384,1755185512336,-400.0,0.00027671,2]
[379204385,1755185512345,-400.0,0.00027671,2]
[379204386,1755185512355,-171.276617,0.00027671,7]
[379204387,1755185512365,-628.0,0.00027671,2]
[379204388,1755185512374,-11329.28,0.00027671,2]
[379204389,1755185512384,-2846.11,0.00027671,2]
[379204390,1755185512394,-6326.44,0.00027671,2]
[379204391,1755185512403,-5281.85,0.00027671,2]
[379204392,1755185512413,-9573.35,0.00027671,2]
[379204393,1755185512424,-6179.54,0.00027671,2]
[379204394,1755185512438,-877.22,0.00027671,2]
[379204395,1755185512447,-400.0,0.00027671,2]
[379204396,1755185512457,-400.0,0.00027671,2]
[379204397,1755185512467,-400.0,0.00027671,2]
[379204398,1755185512477,-216.71,0.00027671,2]
[379204399,1755185512486,-2572.41,0.00027671,2]
[379204400,1755185512496,-1135.94,0.00027671,2]
[379204401,1755185512505,-1185.25,0.00027671,2]
[379204402,1755185512515,-3301.17,0.00027671,2]
[379204403,1755185512524,-400.0,0.00027671,2]
[379204404,1755185512534,-1636.72,0.00027671,2]
[379204405,1755185512543,-437.76,0.00027671,2]
[379204406,1755185512553,-1345.93,0.00027671,2]
[379204407,1755185512562,-915.67,0.00027671,2]
[379204408,1755185512572,-16395.22583564,0.00027671,2]
[379204409,1755185514144,-2534.25416436,0.00027671,2]
[379204410,1755185514154,-945.16,0.00027671,2]
[379204411,1755185514164,-3525.86,0.00027671,2]
[379204412,1755185514174,-1030.33,0.00027671,2]
[379204413,1755185514187,-261.156447,0.00027671,7]
[379204414,1755185514196,-400.0,0.00027671,2]
[379204415,1755185514207,-635.86,0.00027671,2]
[379204416,1755185514217,-6202.44,0.00027671,2]
[379204417,1755185514227,-261.156447,0.00027671,7]
[379204418,1755185514237,-418.43,0.00027671,2]
[379204419,1755185514247,-6566.64,0.00027671,2]
[379204420,1755185514257,-859.69,0.00027671,2]
[379204421,1755185514267,-5564.48,0.00027671,2]
[379204422,1755185514277,-400.0,0.00027671,2]
[379204423,1755185514287,-3626.23,0.00027671,2]
[379204424,1755185514298,-400.0,0.00027671,2]
[379204425,1755185514308,-3116.26,0.00027671,2]
[379204426,1755185514318,-400.0,0.00027671,2]
[379204427,1755185514328,-3262.33,0.00027671,2]
[379204428,1755185514339,-1976.84,0.00027671,2]
[379204429,1755185514349,-400.0,0.00027671,2]
[379204430,1755185514360,-261.156447,0.00027671,7]
[379204431,1755185514370,-261.156447,0.00027671,7]
[379204432,1755185514381,-480.73,0.00027671,2]
[379204433,1755185514391,-1302.43,0.00027671,2]
[379204434,1755185514401,-400.0,0.00027671,2]
[379204435,1755185514410,-400.0,0.00027671,2]
[379204436,1755185514420,-400.0,0.00027671,2]
[379204437,1755185514433,-400.0,0.00027671,2]
[379204438,1755185514442,-550.6,0.00027671,2]
[379204439,1755185514452,-2424.23,0.00027671,2]
[379204440,1755185514463,-606.72,0.00027671,2]
[379204441,1755185514473,-220.48,0.00027671,2]
[379204442,1755185514483,-730.126068,0.00027671,7]
[379204443,1755185514492,-400.0,0.00027671,2]
[379204444,1755185514502,-730.126068,0.00027671,7]
[379204445,1755185514512,-400.0,0.00027671,2]
[379204446,1755185514522,-17273.92,0.00027671,2]
[379204447,1755185514531,-2687.1,0.00027671,2]
[379204448,1755185514542,-4608.25,0.00027671,2]
[379204449,1755185514551,-400.0,0.00027671,2]
[379204450,1755185514562,-1981.24,0.00027671,2]
[379204451,1755185514572,-2687.85,0.00027671,2]
[379204452,1755185514582,-2015.47,0.00027671,2]
[379204453,1755185514592,-400.0,0.00027671,2]
[379204454,1755185514602,-2929.51,0.00027671,2]
[379204455,1755185514612,-4685.61,0.00027671,2]
[379204456,1755185514622,-400.0,0.00027671,2]
[379204457,1755185514631,-5771.16,0.00027671,2]
[379204458,1755185514641,-400.0,0.00027671,2]
[379204459,1755185514650,-400.0,0.00027671,2]
[379204460,1755185514660,-2142.41,0.00027671,2]
[379204461,1755185514670,-4767.67,0.00027671,2]
[379204462,1755185514683,-730.126068,0.00027671,7]
[379204463,1755185514693,-730.126069,0.00027671,7]
[379204464,1755185514703,-2757.68,0.00027671,2]
[379204465,1755185514714,-400.0,0.00027671,2]
[379204466,1755185514724,-632.866916,0.00027671,7]
[379204467,1755185514733,-8474.45,0.00027671,2]
[379204468,1755185514743,-400.0,0.00027671,2]
[379204469,1755185514754,-632.866916,0.00027671,7]
[379204470,1755185514765,-447.5,0.00027671,2]
[379204471,1755185514775,-400.0,0.00027671,2]
[379204472,1755185514785,-400.0,0.00027671,2]
[379204473,1755185514796,-400.0,0.00027671,2]
[379204474,1755185514806,-400.0,0.00027671,2]
[379204475,1755185514815,-4346.13,0.00027671,2]
[379204476,1755185514825,-1099.63,0.00027671,2]
[379204477,1755185514835,-400.0,0.00027671,2]
[379204478,1755185514845,-3796.11,0.00027671,2]
[379204479,1755185514855,-632.866916,0.00027671,7]
[379204480,1755185514865,-400.0,0.00027671,2]
[379204481,1755185514875,-478.3,0.00027671,2]
[379204482,1755185514886,-632.866916,0.00027671,7]
[379204483,1755185514896,-2075.87,0.00027671,2]
[379204484,1755185514906,-2191.9,0.00027671,2]
[379204485,1755185514916,-400.0,0.00027671,2]
[379204486,1755185514926,-400.0,0.00027671,2]
[379204487,1755185514938,-2124.43,0.00027671,2]
[379204488,1755185514949,-6540.61,0.00027671,2]
[379204489,1755185514959,-17694.51,0.00027671,2]
[379204490,1755185514969,-706.4,0.00027671,2]
[379204491,1755185514980,-320.51907,0.00027671,7]
[379204492,1755185514990,-320.51907,0.00027671,7]
[379204493,1755185515000,-5251.96,0.00027671,2]
[379204494,1755185515010,-8588.41,0.00027671,2]
[379204495,1755185515020,-2530.26,0.00027671,2]
[379204496,1755185515031,-2459.53,0.00027671,2]
[379204497,1755185515041,-2838.45,0.00027671,2]
[379204498,1755185515052,-5444.83,0.00027671,2]
[379204499,1755185515062,-1095.21,0.00027671,2]
[379204500,1755185515072,-1598.76,0.00027671,2]
[379204501,1755185515082,-320.51907,0.00027671,7]
[379204502,1755185515092,-320.51907,0.00027671,7]
[379204503,1755185515102,-2126.86,0.00027671,2]
[379204504,1755185515112,-3089.27,0.00027671,2]
[379204505,1755185515122,-760.5,0.00027671,2]
[379204506,1755185515133,-400.0,0.00027671,2]
[379204507,1755185515144,-4945.47,0.00027671,2]
[379204508,1755185515154,-5572.39,0.00027671,2]
[379204509,1755185515164,-400.0,0.00027671,2]
[379204510,1755185515174,-6068.79,0.00027671,2]
[379204511,1755185515187,-6569.21,0.00027671,2]
[379204512,1755185515198,-2675.98,0.00027671,2]
[379204513,1755185515208,-400.0,0.00027671,2]
[379204514,1755185515220,-3738.53,0.00027671,2]
[379204515,1755185515229,-1969.6,0.00027671,2]
[379204516,1755185515239,-11584.68,0.00027671,2]
[379204517,1755185515248,-635.64,0.00027671,2]
[379204518,1755185515258,-1705.24,0.00027671,2]
[379204519,1755185515267,-803.12,0.00027671,2]
[379204520,1755185515277,-772.51,0.00027671,2]
[379204521,1755185515291,-3012.8,0.00027671,2]
[379204522,1755185515302,-400.0,0.00027671,2]
[379204523,1755185515311,-798.17,0.00027671,2]
[379204524,1755185515322,-1002.32,0.00027671,2]
[379204525,1755185515331,-649.39,0.00027671,2]
[379204526,1755185515342,-2590.45,0.00027671,2]
[379204527,1755185515352,-1031.6,0.00027671,2]
[379204528,1755185515361,-400.0,0.00027671,2]
[379204529,1755185515370,-2501.78,0.00027671,2]
[379204530,1755185515380,-7150.5,0.00027671,2]
[379204531,1755185515389,-541.92,0.00027671,2]
[379204532,1755185515396,-1319.92,0.00027671,2]
[379204533,1755185515403,-702.75,0.00027671,2]
[379204534,1755185515411,-11521.53,0.00027671,2]
[379204535,1755185515419,-400.0,0.00027671,2]
[379204536,1755185515427,-151.0,0.00027671,7]
[379204537,1755185515438,-2639.48,0.00027671,2]
[379204538,1755185515448,-400.0,0.00027671,2]
[379204539,1755185515458,-350.652721,0.00027671,7]
[379204540,1755185515468,-9184.76,0.00027671,2]
[379204541,1755185515478,-2628.13,0.00027671,2]
[379204542,1755185515489,-350.652721,0.00027671,7]
[379204543,1755185515499,-1901.99,0.00027671,2]
[379204544,1755185515509,-400.0,0.00027671,2]
[379204545,1755185515519,-400.0,0.00027671,2]
[379204546,1755185515529,-2470.8,0.00027671,2]
[379204547,1755185515539,-39354.55,0.00027671,2]
[379204548,1755185515549,-400.0,0.00027671,2]
[379204549,1755185515559,-400.0,0.00027671,2]
[379204550,1755185515570,-944.04,0.00027671,2]
[379204551,1755185515580,-1681.82,0.00027671,2]
[379204552,1755185515590,-8381.41,0.00027671,2]
[379204553,1755185515600,-7406.77,0.00027671,2]
[379204554,1755185515610,-5969.73,0.00027671,2]
[379204555,1755185515620,-5296.51,0.00027671,2]
[379204556,1755185515631,-350.652721,0.00027671,7]
[379204557,1755185515641,-2298.66,0.00027671,2]
[379204558,1755185515651,-350.652721,0.00027671,7]
[379204559,1755185515661,-400.0,0.00027671,2]
[379204560,1755185515671,-400.0,0.00027671,2]
[379204561,1755185515683,-952.22,0.00027671,2]
[379204562,1755185515692,-716.29,0.00027671,2]
[379204563,1755185515702,-4115.14,0.00027671,2]
[379204564,1755185515712,-4861.41,0.00027671,2]
[379204565,1755185515722,-4629.83,0.00027671,2]
[379204566,1755185515732,-683.52,0.00027671,2]
[379204567,1755185515742,-1141.92,0.00027671,2]
[379204568,1755185515752,-400.0,0.00027671,2]
[379204569,1755185515762,-514.37,0.00027671,2]
[379204570,1755185515772,-441.74,0.00027671,2]
[379204571,1755185515782,-2435.1,0.00027671,2]
[379204572,1755185515792,-3410.12,0.00027671,2]
[379204573,1755185515802,-400.0,0.00027671,2]
[379204574,1755185515812,-4714.98,0.00027671,2]
[379204575,1755185515822,-400.0,0.00027671,2]
[379204576,1755185515832,-1290.86,0.00027671,2]
[379204577,1755185515842,-6256.65,0.00027671,2]
[379204578,1755185515852,-12720.06,0.00027671,2]
[379204579,1755185515862,-400.0,0.00027671,2]
[379204580,1755185515882,-5110.67,0.00027671,2]
[379204581,1755185515893,-400.0,0.00027671,2]
[379204582,1755185515904,-6007.8,0.00027671,2]
[379204583,1755185515915,-400.0,0.00027671,2]
[379204584,1755185515926,-3458.23,0.00027671,2]
[379204585,1755185515938,-400.0,0.00027671,2]
[379204586,1755185515949,-400.0,0.00027671,2]
[379204587,1755185515959,-3689.29,0.00027671,2]
[379204588,1755185515970,-7001.12,0.00027671,2]
[379204589,1755185515980,-716.91,0.00027671,2]
[379204590,1755185515991,-400.0,0.00027671,2]
[379204591,1755185516002,-400.0,0.00027671,2]
[379204592,1755185516012,-400.0,0.00027671,2]
[379204593,1755185516022,-400.0,0.00027671,2]
[379204594,1755185516032,-1668.33,0.00027671,2]
[379204595,1755185516043,-400.0,0.00027671,2]
[379204596,1755185516054,-400.0,0.00027671,2]
[379204597,1755185516064,-5903.76,0.00027671,2]
[379204598,1755185516075,-400.0,0.00027671,2]
[379204599,1755185516085,-976.78,0.00027671,2]
[379204600,1755185516095,-764.41,0.00027671,2]
[379204601,1755185516106,-804.23,0.00027671,2]
[379204602,1755185516116,-400.0,0.00027671,2]
[379204603,1755185516126,-4616.83,0.00027671,2]
[379204604,1755185516136,-5755.46,0.00027671,2]
[379204605,1755185516150,-574.7,0.00027671,2]
[379204606,1755185516161,-400.0,0.00027671,2]
[379204607,1755185516171,-7582.06,0.00027671,2]
[379204608,1755185516185,-407.58,0.00027671,2]
[379204609,1755185516196,-400.0,0.00027671,2]
[379204610,1755185516207,-1893.17,0.00027671,2]
[379204611,1755185516219,-1859.86,0.00027671,2]
[379204612,1755185516232,-634.01,0.00027671,2]
[379204613,1755185516242,-6689.6,0.00027671,2]
[379204614,1755185516254,-6218.57,0.00027671,2]
[379204615,1755185516267,-2972.4,0.00027671,2]
[379204616,1755185516278,-400.0,0.00027671,2]
[379204617,1755185516288,-400.0,0.00027671,2]
[379204618,1755185516299,-546.84,0.00027671,2]
[379204619,1755185516309,-400.0,0.00027671,2]
[379204620,1755185516319,-943.55,0.00027671,2]
[379204621,1755185516329,-400.0,0.00027671,2]
[379204622,1755185516340,-610.39,0.00027671,2]
[379204623,1755185516351,-2397.59,0.00027671,2]
[379204624,1755185516361,-7967.93,0.00027671,2]
[379204625,1755185516371,-891.65,0.00027671,2]
[379204626,1755185516382,-2447.93,0.00027671,2]
[379204627,1755185516392,-400.0,0.00027671,2]
[379204628,1755185516402,-400.0,0.00027671,2]
[379204629,1755185516413,-3948.42,0.00027671,2]
[379204630,1755185516423,-400.0,0.00027671,2]
[379204631,1755185516435,-2259.68,0.00027671,2]
[379204632,1755185516446,-7694.47,0.00027671,2]
[379204633,1755185516456,-448.36,0.00027671,2]
[379204634,1755185516467,-2448.57,0.00027671,2]
[379204635,1755185516478,-400.0,0.00027671,2]
[379204636,1755185516489,-16030.0,0.00027671,2]
[379204637,1755185516499,-400.0,0.00027671,2]
[379204638,1755185516510,-389.74809226,0.00027671,2]
[379204639,1755185516520,-820.41,0.00027671,2]
[379204640,1755185516531,-10134.15,0.00027671,2]
[379204641,1755185516544,-5823.46,0.00027671,2]
[379204642,1755185516898,-11287.08,0.00027671,2]
[379204643,1755185516908,-833.81,0.00027671,2]
[379204644,1755185516917,-4404.54,0.00027671,2]
[379204645,1755185516927,-400.0,0.00027671,2]
[379204646,1755185516937,-2799.25,0.00027671,2]
[379204647,1755185516947,-400.0,0.00027671,2]
[379204648,1755185516957,-400.0,0.00027671,2]
[379204649,1755185516966,-6766.18,0.00027671,2]
[379204650,1755185516975,-11943.33,0.00027671,2]
[379204651,1755185516985,-1030.78,0.00027671,2]
[379204652,1755185516995,-6257.67,0.00027671,2]
[379204653,1755185517004,-9727.26,0.00027671,2]
[379204654,1755185517014,-528.98,0.00027671,2]
[379204655,1755185517024,-2546.41,0.00027671,2]
[379204656,1755185517034,-400.0,0.00027671,2]
[379204657,1755185517044,-658.73,0.00027671,2]
[379204658,1755185517054,-400.0,0.00027671,2]
[379204659,1755185517064,-400.0,0.00027671,2]
[379204660,1755185517073,-3468.07,0.00027671,2]
[379204661,1755185517083,-5787.92,0.00027671,2]
[379204662,1755185517092,-5614.51,0.00027671,2]
[379204663,1755185517102,-151.0,0.00027671,7]
[379204664,1755185517111,-542.39,0.00027671,2]
[379204665,1755185517121,-151.0,0.00027671,7]
[379204666,1755185517130,-6181.13,0.00027671,2]
[379204667,1755185517145,-400.0,0.00027671,2]
[379204668,1755185517154,-400.0,0.00027671,2]
[379204669,1755185517164,-810.94,0.00027671,2]
[379204670,1755185517173,-844.55,0.00027671,2]
[379204671,1755185517185,-4694.06,0.00027671,2]
[379204672,1755185517195,-400.0,0.00027671,2]
[379204673,1755185517205,-3409.43,0.00027671,2]
[379204674,1755185517216,-13993.43,0.00027671,2]
[379204675,1755185517226,-3104.05,0.00027671,2]
[379204676,1755185517236,-8132.34,0.00027671,2]
[379204677,1755185517245,-400.0,0.00027671,2]
[379204678,1755185517254,-459.49,0.00027671,2]
[379204679,1755185517263,-400.0,0.00027671,2]
[379204680,1755185517273,-400.0,0.00027671,2]
[379204681,1755185517283,-400.0,0.00027671,2]
[379204682,1755185517292,-1680.1,0.00027671,2]
[379204683,1755185517301,-1269.76,0.00027671,2]
[379204684,1755185517310,-639.64,0.00027671,2]
[379204685,1755185517319,-3086.39,0.00027671,2]
[379204686,1755185517329,-400.0,0.00027671,2]
[379204687,1755185517339,-8818.84,0.00027671,2]
[379204688,1755185517348,-7132.25,0.00027671,2]
[379204689,1755185517357,-400.0,0.00027671,2]
[379204690,1755185517367,-400.0,0.00027671,2]
[379204691,1755185517376,-982.43,0.00027671,2]
[379204692,1755185517386,-1884.09,0.00027671,2]
[379204693,1755185517395,-3580.54,0.00027671,2]
[379204694,1755185517405,-1042.17,0.00027671,2]
[379204695,1755185517414,-5103.32,0.00027671,2]
[379204696,1755185517424,-2831.0,0.00027671,2]
[379204697,1755185517434,-400.0,0.00027671,2]
[379204698,1755185517444,-400.0,0.00027671,2]
[379204699,1755185517454,-400.0,0.00027671,2]
[379204700,1755185517465,-3527.71,0.00027671,2]
[379204701,1755185517475,-1027.01,0.00027671,2]
[379204702,1755185517484,-400.0,0.00027671,2]
[379204703,1755185517493,-400.0,0.00027671,2]
[379204704,1755185517503,-558.79,0.00027671,2]
[379204705,1755185517512,-400.0,0.00027671,2]
[379204706,1755185517521,-1908.65,0.00027671,2]
[379204707,1755185517530,-400.0,0.00027671,2]
[379204708,1755185517541,-2836.21,0.00027671,2]
[379204709,1755185517551,-518.91,0.00027671,2]
[379204710,1755185517561,-713.37,0.00027671,2]
[379204711,1755185517570,-1971.5,0.00027671,2]
[379204712,1755185517580,-602.0,0.00027671,2]
[379204713,1755185517589,-861.1,0.00027671,2]
[379204714,1755185517598,-1435.4,0.00027671,2]
[379204715,1755185517607,-7148.91,0.00027671,2]
[379204716,1755185517617,-1338.03,0.00027671,2]
[379204717,1755185517626,-1734.04,0.00027671,2]
[379204718,1755185517635,-1191.19,0.00027671,2]
[379204719,1755185517644,-2988.47,0.00027671,2]
[379204720,1755185517654,-897.68,0.00027671,2]